[Event "Rotary Club Kalyan Rapid 2025"]
[Site "Kalyan"]
[Date "2025.02.23"]
[Round "4.5"]
[White "Sriram, Jha"]
[Black "Somaiya Shreyansh"]
[Result "1-0"]
[Annotator "ChessBase"]
[ECO "D37"]
[WhiteElo "2322"]
[BlackElo "1795"]
[PlyCount "119"]
[EventDate "2025.02.20"]
[EventType "swiss"]
[EventCountry "IND"]
[SourceTitle "playchess.com"]
[Source "ChessBase"]
[SourceQuality "1"]
[TimeControl "600+5"]

1. d4 {[%emt 0:00:04]} Nf6 {[%emt 0:00:02]} 2. c4 {[%emt 0:00:03]} e6 {[%emt 0:00:06]} 3. Nc3 {[%emt 0:00:11]} d5 {[%emt 0:00:02]} 4. Nf3 {[%emt 0:00:07]} Be7 {[%emt 0:00:04]} 5. Bf4 {[%emt 0:00:06]} O-O {[%emt 0:00:16]} 6. e3 {[%emt 0:00:01]} c5 {[%emt 0:00:27]} 7. dxc5 {[%emt 0:00:06]} dxc4 {[%emt 0:00:08]} 8. Bxc4 {[%emt 0:00:13]} Bxc5 {[%emt 0:00:14]} 9. O-O {[%emt 0:00:11]} a6 {[%emt 0:00:36]} 10. Qxd8 {[%emt 0:00:52]} Rxd8 {[%emt 0:00:02]} 11. Rfd1 {[%emt 0:00:03]} Rxd1+ {[%emt 0:00:36]} 12. Rxd1 {[%emt 0:00:02]} Be7 {[%emt 0:00:01]} 13. a4 {[%emt 0:01:22]} Nbd7 {[%emt 0:00:53]} 14. Ne5 {[%emt 0:00:45]} h6 {[%emt 0:01:00]} 15. h3 {[%emt 0:00:16]} Kf8 {[%emt 0:00:03]} 16. Be2 {[%emt 0:00:25]} Nxe5 {[%emt 0:00:57]} 17. Bxe5 {[%emt 0:00:01]} Nd7 {[%emt 0:00:01]} 18. Bc7 {[%emt 0:00:16]} Nf6 {[%emt 0:00:55]} 19. Bf3 {[%emt 0:00:09]} Bd7 {[%emt 0:00:03]} 20. a5 {[%emt 0:01:05]} Ke8 {[%emt 0:00:45]} 21. Bb6 {[%emt 0:00:26]} Rb8 {[%emt 0:00:38]} 22. Kf1 {[%emt 0:00:50]} Bd8 {[%emt 0:00:02]} 23. Bxd8 {[%emt 0:00:10]} Kxd8 {[%emt 0:00:01]} 24. e4 {[%emt 0:00:28]} e5 {[%emt 0:00:41]} 25. Nd5 {[%emt 0:00:01]} Ke8 {[%emt 0:00:16]} 26. Nxf6+ {[%emt 0:00:17]} gxf6 {[%emt 0:00:01]} 27. Rc1 {[%emt 0:01:00]} Ke7 {[%emt 0:00:11]} 28. Ke2 {[%emt 0:00:13]} Bc6 {[%emt 0:00:08]} 29. Ke3 {[%emt 0:00:06]} Rd8 {[%emt 0:00:05]} 30. Be2 {[%emt 0:00:01]} Rd4 {[%emt 0:00:06]} 31. f3 {[%emt 0:00:07]} Kd6 {[%emt 0:00:28]} 32. Bc4 {[%emt 0:00:16]} Ke7 {[%emt 0:00:53]} 33. Bxa6 {[%emt 0:00:08]} Rb4 {[%emt 0:00:10]} 34. Rc2 {[%emt 0:00:13]} bxa6 {[%emt 0:00:22]} 35. Rxc6 {[%emt 0:00:01]} Rxb2 {[%emt 0:00:01]} 36. g4 {[%emt 0:00:07]} Rh2 {[%emt 0:00:22]} 37. Rxa6 {[%emt 0:00:03]} Rxh3 {[%emt 0:00:02]} 38. Ra7+ {[%emt 0:00:15]} Kf8 {[%emt 0:00:00]} 39. Ra8+ {[%emt 0:00:05]} Ke7 {[%emt 0:00:26]} 40. Ra7+ {[%emt 0:00:27]} Kf8 {[%emt 0:00:02]} 41. Rb7 {[%emt 0:00:05]} Rh1 {[%emt 0:00:10]} 42. a6 {[%emt 0:00:01]} Ra1 {[%emt 0:00:02]} 43. a7 {[%emt 0:00:01]} Ra3+ {[%emt 0:00:01]} 44. Kd2 {[%emt 0:00:02]} Kg7 {[%emt 0:00:01]} 45. Kc2 {[%emt 0:00:06]} Kg6 {[%emt 0:00:06]} 46. Kb2 {[%emt 0:00:01]} Ra6 {[%emt 0:00:01]} 47. Kb3 {[%emt 0:00:03]} Ra1 {[%emt 0:00:01]} 48. Kc4 {[%emt 0:00:02]} Kg7 {[%emt 0:00:08]} 49. Kd5 {[%emt 0:00:03]} Kg6 {[%emt 0:00:01]} 50. Kd6 {[%emt 0:00:04]} Kg5 {[%emt 0:00:19]} 51. Rxf7 {[%emt 0:00:05]} Ra6+ {[%emt 0:00:01]} 52. Kc5 {[%emt 0:00:04]} Kg6 {[%emt 0:00:08]} 53. Rc7 {[%emt 0:00:14]} Kg5 {[%emt 0:00:05]} 54. Kb5 {[%emt 0:00:10]} Ra3 {[%emt 0:00:15]} 55. Rf7 {[%emt 0:00:31]} Kg6 {[%emt 0:00:07]} 56. Rd7 {[%emt 0:00:02]} Kg5 {[%emt 0:00:03]} 57. Kb6 {[%emt 0:00:01]} Kf4 {[%emt 0:00:33]} 58. Rd3 {[%emt 0:00:44]} Ra1 {[%emt 0:00:15]} 59. Rb3 {[%emt 0:00:02]} Ra4 {[%emt 0:00:14]} 60. Kb7 {[%emt 0:00:04]} 1-0